Cogmind - Beta 14 @@@ ROGUE MODE // 2024.08.29 @ 23:06:07 Player: THN-L0C Result: Destroyed by G-47 Trooper with Particle Gun Performance ------------- Evolutions (1) 500 Regions Visited (6) 1200 Robots Destroyed (58) 290 Value Destroyed (922) 922 Prototype IDs (24) 480 Alien Tech Used (0) 0 Bonus (540) 540 TOTAL SCORE: 3932 Bonus ------- High Alert Combat Kills 88 Follower Combat Kills 310 Aligned with FarCom 300 Friendly Fire -158 Cogmind --------- Core Integrity 0/400 Matter 51/300 Energy 34/100 System Corruption 12% Temperature Cool (9) Movement Core (750) Ox14 Location -8/Mines Parts ------- > --- POWER (1) -------- (None) > --- PROPULSION (4) --- (None) > --- UTILITY (2) ------ High-capacity Storage Unit Hardened Light Armor Plating > --- WEAPON (2) ------- (None) > --- INVENTORY (20) --- Improved Aluminum Leg Small Storage Unit Large Storage Unit Medium Matter Pod (0) Large Matter Pod (150) Improved Terrain Scan Processor Hardened Light Armor Plating Hardlight Generator Medium Laser YOLO Cannon Improved Assault Rifle Improved Assault Rifle Rocket Launcher Mace Peak State ------------ > --- POWER ------------ (None) > --- PROPULSION ------- Light Treads > --- UTILITY ---------- High-capacity Storage Unit > --- WEAPON ----------- YOLO Cannon > --- INVENTORY -------- Improved Aluminum Leg Small Storage Unit Large Storage Unit Medium Matter Pod Large Matter Pod Improved Terrain Scan Processor Hardened Light Armor Plating Hardened Light Armor Plating Hardlight Generator Medium Laser Improved Assault Rifle Improved Assault Rifle Rocket Launcher Mace [Rating: 24] Favorites ----------- Power Ion Engine Engine Ion Engine Power Core Light Nuclear Core Propulsion Light Treads Treads Light Treads Utility Large Storage Unit Device Heat Sink Storage Large Storage Unit Protection Hardened Light Armor Plating Weapon Medium Laser Energy Gun Medium Laser Energy Cannon YOLO Cannon Ballistic Gun Improved Assault Rifle Launcher Rocket Launcher Build | -11 -10 -10 -9 -9 -9 -8 ------- Run | Yrd Mat Min Mat Min Exi Min Slots Evolved 2 | . . . 2 . . . Power . | . . . . . . . Propulsion 2 | . . . 2 . . . Utility . | . . . . . . . Weapon . | . . . . . . . Parts Attached 29 | 7 1 2 12 3 2 2 Power 4 | 1 . . 2 1 . . Engine 3 | 1 . . 1 1 . . Core 1 | . . . 1 . . . Reactor . | . . . . . . . Propulsion 10 | 2 . . 7 1 . . Treads 10 | 2 . . 7 1 . . Leg . | . . . . . . . Wheel . | . . . . . . . Hover . | . . . . . . . Flight . | . . . . . . . Utility 7 | 2 1 1 . . 2 1 Device 2 | 1 1 . . . . . Storage 4 | 1 . 1 . . 2 . Processor . | . . . . . . . Hackware . | . . . . . . . Protection 1 | . . . . . . 1 Artifact . | . . . . . . . Weapon 8 | 2 . 1 3 1 . 1 Energy Gun 2 | 2 . . . . . . Energy Cannon 1 | . . . . . . 1 Ballistic Gun 3 | . . . 2 1 . . Ballistic Cannon . | . . . . . . . Launcher 2 | . . 1 1 . . . Special Weapon . | . . . . . . . Impact Weapon . | . . . . . . . Slashing Weapon . | . . . . . . . Piercing Weapon . | . . . . . . . Special Melee Weapon . | . . . . . . . Unidentified Prototypes 1 | . . . 1 . . . Parts Lost 13 | . . . 5 7 . 1 Power 3 | . . . 1 2 . . Propulsion 7 | . . . 3 3 . 1 Utility 1 | . . . . 1 . . Weapon 2 | . . . 1 1 . . Highest Loss Streak 5 | . . . 2 5 . 1 To Critical Strikes . | . . . . . . . Average Slot Usage (%) 81 | . 100 100 93 79 25 22 Engine 6 | . 14 14 2 7 . . Core 2 | . . . 7 . . . Treads 29 | . 28 28 39 33 11 10 Device 9 | . 14 14 11 8 . . Storage 12 | . 14 14 11 11 12 11 Energy Gun 9 | . 28 24 . . . . Ballistic Gun 5 | . . . 10 11 1 . Launcher 5 | . . 3 10 8 . . Peak Build Rating 24 | 7 7 8 17 16 7 24 Average Rating 10 | 5 7 7 14 12 5 6 On Entrance 7 | . 7 7 8 16 7 6 Naked Turns . | . . . . . . . Heaviest Build 45 | 15 15 32 35 35 40 45 Greatest Support 80 | 40 40 40 80 80 20 20 Greatest Overweight (x) 14 | . . . 1 1 1 14 Average Overweight (x) . | . . . . . . 1 Largest Inventory Capacity 20 | 8 8 15 15 15 20 20 Average Capacity 14 | 7 8 14 15 15 15 20 Most Carried 16 | 1 1 3 15 15 16 16 Average Carried 8 | . 1 2 12 13 14 15 Final Capacity 20 | 8 8 15 15 15 20 20 Final Carried 16 | 1 1 3 15 13 16 15 Class Distribution -------------------- 72% | Mutant 27% | Scavenger-Mutant Dominant Class ---------------- Mutant | -10/Materials Mutant | -10/Mines Scavenger-Mutant | -9/Materials Scavenger-Mutant | -9/Mines Mutant | -9/Exiles Mutant | -8/Mines Resources | -11 -10 -10 -9 -9 -9 -8 ----------- Run | Yrd Mat Min Mat Min Exi Min Matter Collected 970 | 241 95 44 464 126 . . Remotely . | . . . . . . . Salvage Created 1039 | 38 181 23 672 77 . 48 Parts 94 | 6 19 5 56 7 . 1 Haulers Intercepted 3 | . . . 3 . . . Recyclers Shooed 1 | . . . 1 . . . Parts Field Recycled . | . . . . . . . Retrieved Matter . | . . . . . . . Parts Self-Destructed . | . . . . . . . Prevented . | . . . . . . . Kills | -11 -10 -10 -9 -9 -9 -8 ------- Run | Yrd Mat Min Mat Min Exi Min Combat Hostiles Destroyed 39 | . 7 3 19 9 . 1 Guns 12 | . 6 . 3 3 . . AOE 25 | . . 3 16 6 . . Classes Destroyed 11 | 2 3 . 4 2 . . Worker 8 | 1 . . 7 . . . Builder 8 | . 1 1 5 1 . . Tunneler 2 | 1 . 1 . . . . Hauler 3 | . . . 3 . . . Watcher 1 | . . . 1 . . . Swarmer 20 | . 5 3 8 4 . . Grunt 9 | . 2 . 7 . . . Duelist 2 | . . . 1 . . 1 Sentry 3 | . . . 3 . . . Demolisher 1 | . . . . 1 . . Assembled 4 | . . . . 4 . . Thug 1 | . . . 1 . . . Best Kill Streak 9 | 1 5 4 9 5 . 1 Combat Bots Only 5 | . 5 3 4 4 . 1 Max Kills in Single Turn 4 | 1 2 2 4 4 . 1 Gunslinging 1 | . 1 . . . . . Exploded 4 | . . 2 4 3 . . Melee . | . . . . . . . Uniques/NPCs Destroyed . | . . . . . . . Combat | -11 -10 -10 -9 -9 -9 -8 -------- Run | Yrd Mat Min Mat Min Exi Min Hostile Shots Fired 186 | . 71 18 70 20 . 7 Missed 56 | . 17 10 22 5 . 2 Damage Taken 2235 | . 469 81 939 575 . 171 Core 547 | . 102 37 186 103 . 119 Absorbed by Shields . | . . . . . . . Core Remaining (%) 72 | 100 . 44 . . . . Volleys Fired 70 | 4 20 4 34 7 . 1 Largest 2 | 2 2 2 2 2 . 1 Hottest 100 | 100 100 83 56 56 . 100 Shots Fired 131 | 8 40 7 63 12 . 1 Gun 90 | 8 40 3 32 7 . . Cannon 1 | . . . . . . 1 Launcher 40 | . . 4 31 5 . . Special . | . . . . . . . Kinetic 39 | . . . 32 7 . . Thermal 52 | 8 40 3 . . . 1 Explosive 40 | . . 4 31 5 . . Electromagnetic . | . . . . . . . Robot Hit Streak 10 | 2 10 1 10 5 . 6 Robot Miss Streak 5 | 1 4 3 2 5 . . Penetration Max . | . . . . . . . Secondary Targets 3 | . 3 . . . . . Max Gunslinging Chain 1 | . 1 . . . . . Shots Hit Robots 72 | 5 26 2 32 6 . 1 Core Hits 76 | 2 10 3 48 13 . . Critical Kills 1 | . . . . . . 1 Critical Parts Destroyed . | . . . . . . . Critical Strikes 5 | . 4 . . . . 1 Burn 4 | . 4 . . . . . Meltdown 1 | . . . . . . 1 Melee Attacks . | . . . . . . . Impact . | . . . . . . . Slashing . | . . . . . . . Piercing . | . . . . . . . Sneak Attacks . | . . . . . . . Combat Hostiles . | . . . . . . . Follow-up Attacks . | . . . . . . . Damage Inflicted 3355 | 62 327 330 2071 488 . 77 Guns 762 | 62 327 13 267 93 . . Cannons 77 | . . . . . . 77 Explosions 2458 | . . 289 1786 383 . . Melee . | . . . . . . . Ramming 58 | . . 28 18 12 . . Kinetic 360 | . . . 267 93 . . Thermal 488 | 62 327 13 9 . . 77 Explosive 2378 | . . 289 1706 383 . . Electromagnetic 71 | . . . 71 . . . Impact . | . . . . . . . Slashing . | . . . . . . . Piercing . | . . . . . . . Highest Corruption 12 | . . . . 12 12 12 Average Corruption 12 | . . . . 12 12 12 Corruption Purged . | . . . . . . . Corruption Blocked . | . . . . . . . Effects 25 | . . . . 3 18 4 Message Errors 10 | . . . . . 7 3 Matter Fused 3 | . . . . . 3 . Heat Flow Errors 2 | . . . . . 2 . Energy Discharges 3 | . . . . . 3 . Parts Fused 1 | . . . . 1 . . Data Loss (minor) 3 | . . . . 1 1 1 Data Loss (major) 2 | . . . . 1 1 . Alerts 1 | . . . . . 1 . Overload Shots . | . . . . . . . Overflow Damage 244 | . . 50 86 39 . 69 Projectiles . | . . . . . . . Explosions 244 | . . 50 86 39 . 69 Melee . | . . . . . . . Knockbacks . | . . . . . . . Impact . | . . . . . . . Kinetic . | . . . . . . . Secondary . | . . . . . . . Self-Inflicted Damage 483 | . . 23 296 94 . 70 Shots 14 | . . 1 9 3 . 1 Rammed 12 | . . 5 5 2 . . Targets Rammed 14 | . . 6 6 2 . . Kicked . | . . . . . . . Crushed 2 | . . 1 1 . . . Highest Temperature 288 | 78 288 . . 6 209 17 Average Temperature 77 | 39 85 . . 6 105 12 Received Heat Transfer 359 | . 102 . 201 20 . 36 Siege Activations . | . . . . . . . Robots Corrupted . | . . . . . . . Combat Hostiles . | . . . . . . . Parts Fried . | . . . . . . . Impact Corruptions . | . . . . . . . Robots Melted 2 | . 1 . . . . 1 Combat Hostiles 2 | . 1 . . . . 1 Parts Melted 6 | . 4 . 1 . . 1 Heat Transferred 1610 | 185 1258 37 50 . . 80 Parts Sabotaged . | . . . . . . . Parts Stolen . | . . . . . . . Parts Stripped . | . . . . . . . Power Chain Reactions 1 | . . . 1 . . . Alert | -11 -10 -10 -9 -9 -9 -8 ------- Run | Yrd Mat Min Mat Min Exi Min Peak Influence 773 | 10 255 86 773 419 . 36 Initial 301 | . 6 21 . 301 . . Average 226 | 2 79 30 407 380 . 2 Maximum Alert Level 3 | . 1 . 3 2 . . Low Security (%) 56 | 100 90 100 21 . . 100 Level 1 11 | . 9 . 17 30 . . Level 2 30 | . . . 56 69 . . Level 3 2 | . . . 4 . . . Level 4 . | . . . . . . . Level 5 . | . . . . . . . High Security . | . . . . . . . Max Security . | . . . . . . . Squads Dispatched 6 | . 3 . 3 . . . Investigation 3 | . 2 . 1 . . . Extermination . | . . . . . . . Reinforcement 3 | . 1 . 2 . . . Assault . | . . . . . . . Garrison . | . . . . . . . Intercept . | . . . . . . . Searches Triggered . | . . . . . . . Construction Impeded 1 | . . . 1 . . . Haulers Reinforced . | . . . . . . . Active Scanning Responses . | . . . . . . . Cargo Convoy Interrupts . | . . . . . . . Stealth | -11 -10 -10 -9 -9 -9 -8 --------- Run | Yrd Mat Min Mat Min Exi Min Distress Signals 2 | . . . 2 . . . Communications Jammed . | . . . . . . . Distress Signals . | . . . . . . . Times Spotted 74 | . 16 3 35 17 . 3 Peak Tracking Total 16 | . 8 3 5 16 . 2 Tactical Retreats 1 | . 1 . . . . . Traps | -11 -10 -10 -9 -9 -9 -8 ------- Run | Yrd Mat Min Mat Min Exi Min Traps Triggered 2 | . 1 . 1 . . . Indirectly . | . . . . . . . Trap Hack Attempts . | . . . . . . . Triggered . | . . . . . . . Disarmed . | . . . . . . . Reprogrammed . | . . . . . . . Reused . | . . . . . . . Traps Extracted . | . . . . . . . Installed . | . . . . . . . Triggered . | . . . . . . . Machines | -11 -10 -10 -9 -9 -9 -8 ---------- Run | Yrd Mat Min Mat Min Exi Min Machines Disabled 5 | . . . 5 . . . Max in Single Turn 1 | . . . 1 . . . Machines Repaired . | . . . . . . . Machines Dismantled . | . . . . . . . Machines Sabotaged . | . . . . . . . Overloaded Fab Kills . | . . . . . . . Hacking | -11 -10 -10 -9 -9 -9 -8 --------- Run | Yrd Mat Min Mat Min Exi Min Machines Accessed 4 | . 3 . . . 1 . Terminals 3 | . 3 . . . . . Fabricators . | . . . . . . . Repair Stations . | . . . . . . . Recycling Units . | . . . . . . . Scanalyzers . | . . . . . . . Garrison Access . | . . . . . . . Total Hacks 15 | . 14 . . . 1 . Successful 6 | . 5 . . . 1 . Failed 9 | . 9 . . . . . Catastrophic 1 | . 1 . . . . . Database Lockouts . | . . . . . . . Manual 15 | . 14 . . . 1 . Terminals 14 | . 14 . . . . . Fabricators . | . . . . . . . Repair Stations . | . . . . . . . Recycling Units . | . . . . . . . Scanalyzers . | . . . . . . . Garrison Access . | . . . . . . . Terminal Hacks 1 | . . . . . 1 . Derelict Proto ID Bank 1 | . . . . . 1 . Fabricator Hacks . | . . . . . . . Repair Station Hacks . | . . . . . . . Recycling Unit Hacks . | . . . . . . . Scanalyzer . | . . . . . . . Garrison Access Hacks . | . . . . . . . Unauthorized Hacks 5 | . 5 . . . . . Terminals 5 | . 5 . . . . . Botnet 2 | . 2 . . . . . Skim 3 | . 3 . . . . . Fabricators . | . . . . . . . Repair Stations . | . . . . . . . Recycling Units . | . . . . . . . Scanalyzers . | . . . . . . . Garrison Access . | . . . . . . . Data Cores Recovered . | . . . . . . . Used . | . . . . . . . Hacking Detections 3 | . 3 . . . . . Full Trace Events 2 | . 2 . . . . . Feedback Events . | . . . . . . . Feedback Blocked . | . . . . . . . Robot Schematics Acquired . | . . . . . . . Robots Built . | . . . . . . . Authchips . | . . . . . . . Time . | . . . . . . . Total Robot Build Rating . | . . . . . . . Part Schematics Acquired . | . . . . . . . Parts Built . | . . . . . . . Authchips . | . . . . . . . Time . | . . . . . . . Total Part Build Rating . | . . . . . . . Parts Repaired . | . . . . . . . Time . | . . . . . . . Parts Recycled . | . . . . . . . Recycled Matter . | . . . . . . . Retrieved Matter . | . . . . . . . Retrieved Components . | . . . . . . . Parts Scanalyzed . | . . . . . . . Part Schematics Acquired . | . . . . . . . Parts Damaged . | . . . . . . . Bothacking | -11 -10 -10 -9 -9 -9 -8 ------------ Run | Yrd Mat Min Mat Min Exi Min Used RIF Installer . | . . . . . . . Robots Hacked . | . . . . . . . Non-combat . | . . . . . . . Combat . | . . . . . . . Robot Hacks Applied . | . . . . . . . Relay Couplers Released . | . . . . . . . Fabnet Peak Effective % . | . . . . . . . Robots Rewired . | . . . . . . . Allies Hacked . | . . . . . . . Hacks Repelled . | . . . . . . . Allies | -11 -10 -10 -9 -9 -9 -8 -------- Run | Yrd Mat Min Mat Min Exi Min Total Allies 4 | . . 1 . 3 . . Largest Group 3 | . . 1 1 3 . . Highest-Rated Group 40 | . . 31 31 40 . . Highest-Rated Ally 31 | . . 31 31 16 . . Total Orders . | . . . . . . . Ally Attacks 50 | . . . 34 16 . . Total Damage 673 | . . . 502 171 . . Kills 12 | . . . 12 . . . Allies Corrupted . | . . . . . . . Allies Melted . | . . . . . . . Intel | -11 -10 -10 -9 -9 -9 -8 ------- Run | Yrd Mat Min Mat Min Exi Min Robot Analysis Total . | . . . . . . . Derelict Logs Recovered 1 | . . 1 . . . . Drone Launches . | . . . . . . . Drone Recoveries . | . . . . . . . Exploration | -11 -10 -10 -9 -9 -9 -8 ------------- Run | Yrd Mat Min Mat Min Exi Min Turns Passed 3598 | 124 404 830 1311 286 502 141 Spaces Moved 1982 | 67 203 504 736 148 269 55 Core 7 | 6 . . . . . 1 Treads 1975 | 61 203 504 736 148 269 54 Legs . | . . . . . . . Wheels . | . . . . . . . Hover . | . . . . . . . Flight . | . . . . . . . Fastest Speed 50 | 50 160 160 160 160 160 240 Average Speed 166 | 150 160 160 160 174 184 249 Slowest Speed 750 | 160 160 160 240 240 240 750 Overloaded Moves . | . . . . . . . Propulsion Burnouts . | . . . . . . . Robots Hopped . | . . . . . . . Cave-ins Triggered 1 | . . . . 1 . . Exploration Rate (%) 49 | 6 49 98 75 29 62 25 Regions Visited 6 Branch Regions 4 Pre-discovered Areas 1 | . . 1 . . . . Known Exits Taken . | . . . . . . . Unknown Exits Taken 6 | 1 1 1 1 1 1 . Scrap Searched 1 | . . 1 . . . . Spaces Dug . | . . . . . . . Terrain Destroyed 294 | . . 14 209 50 . 21 Melee . | . . . . . . . Projectile . | . . . . . . . AOE 294 | . . 14 209 50 . 21 Terrain Rammed . | . . . . . . . Walls Destroyed . | . . . . . . . Machines Disabled . | . . . . . . . Actions | -11 -10 -10 -9 -9 -9 -8 --------- Run | Yrd Mat Min Mat Min Exi Min Total 2134 | 79 242 516 799 164 275 59 Wait 23 | 1 19 . . 3 . . Move 1976 | 66 202 503 735 147 268 55 Hop . | . . . . . . . Pick Up 14 | 1 . 1 10 1 1 . Fast Attach 14 | 7 . . 5 . 2 . Attach 5 | . . . 1 2 . 2 Detach 3 | . . . . . 2 1 Swap 10 | . 1 2 6 1 . . Drop 5 | . . . 2 1 2 . Fire 70 | 4 20 4 34 7 . 1 Melee . | . . . . . . . Ram . | . . . . . . . Kick . | . . . . . . . Crush 14 | . . 6 6 2 . . Escape Stasis . | . . . . . . . Rewire . | . . . . . . . Trap . | . . . . . . . Miscellaneous . | . . . . . . . Route ------- -11/Scrapyard -10/Materials (discovered 2 exits: [*Mat] / [*Min]) -10/Mines (discovered 2 exits: [*Mat x2]) -9/Materials (discovered 3 exits: [*Mat x2] / [*Min]) -9/Mines -9/Exiles (discovered 2 exits: [*Min x2]) -8/Mines History --------- Turn | Location | Event 3 | -11/Scrapyard | Discovered new exit (range 16) 125 | -11/Scrapyard | Entered Materials 316 | -10/Materials | Build established: Mutant 324 | -10/Materials | Discovered new exit (range 10) 459 | -10/Materials | Discovered new exit (range 7) 529 | -10/Materials | Entered Mines 647 | -10/Mines | Received a Rocket Launcher from a helpful Derelict 990 | -10/Mines | Learned location of Zion (-7) 1129 | -10/Mines | Discovered new exit (range 8) 1138 | -10/Mines | Discovered new exit (range 16) 1154 | -10/Mines | Core integrity fell below 50% 1219 | -10/Mines | Escorted by a lone wolf Derelict 1359 | -10/Mines | Entered Materials 1359 | -9/Materials | Accompanied by 1 ally 1359 | -9/Materials | Evolved 2 slots: Propulsion x2 1888 | -9/Materials | Discovered new exit (range 13) 2276 | -9/Materials | Build established: Scavenger-Mutant 2371 | -9/Materials | Discovered new exit (range 16) 2648 | -9/Materials | Discovered new exit (range 12) 2670 | -9/Materials | Entered Mines 2679 | -9/Mines | Met a Derelict bent on vengeance 2684 | -9/Mines | Core integrity fell below 50% 2839 | -9/Mines | Assembled infested the area 2863 | -9/Mines | Assisted by bots powering up and referring to "LRC-V3" 2886 | -9/Mines | Crushed by falling debris 2886 | -9/Mines | System corruption reached 10% 2892 | -9/Mines | Met 8R-AWN 2922 | -9/Mines | Lost 5 parts (1p2n1u1w) 2922 | -9/Mines | Lost 3 allies 2946 | -9/Mines | Discovered new exit (range 5) 2956 | -9/Mines | Entered Exiles 2992 | -9/Exiles | Discovered new exit (range 15) 3026 | -9/Exiles | Welcomed by 8R-AWN 3048 | -9/Exiles | Met EX-HEX 3104 | -9/Exiles | Met EX-BIN 3133 | -9/Exiles | Aligned with FarCom system 3135 | -9/Exiles | Given EX-Vault access code 3173 | -9/Exiles | Opened EX-Vault 3175 | -9/Exiles | Build established: Mutant 3181 | -9/Exiles | Found YOLO Cannon 3214 | -9/Exiles | Warned to stay clear of 0b10 Research branches 3261 | -9/Exiles | Met EX-DEC 3436 | -9/Exiles | Discovered new exit (range 10) 3458 | -9/Exiles | Left Exiles lab with YOLO Cannon 3458 | -9/Exiles | Entered Mines 3590 | -8/Mines | Core integrity fell below 20% 3599 | -8/Mines | Destroyed by G-47 Trooper with Particle Gun Last Messages --------------- 03389_ System corrupted: Energy discharge (-29). 03389_ Acquired Hcp. Storage Unit. 03436_ CA/RG,5JEZDT59TAJT8D>N%GP =BL4 03436_ EXIT=FOUND LOCATION=UNKNOWN GOAL=ESCAPE 03458_ Receiving FarCom transmissions... 03463_ FTP56LIK%HUACJGMWZN 03557_ ==MTQT58UDBCBX0XPR14T8B1WYPE/ ZPAUEYO 03558_ K-01 Serf collects debris. 03587_ System corrupted: Component data lost. 03589_ L-31 Rogue suffers critical hit (Meltdown). 03589_ Katana melted. 03589_ Lgt. Treads destroyed. 03589_ Destroyed Lgt. Treads. 03591_ U-05 Engineer lays Concrete. 03593_ U-05 Engineer builds a Wall. 03598_ U-05 Engineer lays Concrete. Map ----- +----------------------------------------------------+ | ?????????????????????????????????????# #??## | | ?????????????????????????????????????# #??# | | ?????????????????????????????????????# #### | | ?????????????????????????????????????# | | ?????????????????????????????????????# ##### ### | | ?????????????????????????????????????# #???####?? | | ?????????????????????????????????????# #????????? | | ??????????????????????????????######## ##???????? | | ?????????????????????????????## ## #???????? | | ??????????????????###????????# ##??????? | | ?????????????????## ##??????# ##?????? | | ?????????????????# #??????# ##????? | | ?????????????????# ######## #????? | | ??????????????????# ## ## #????? | | ???????????????????# ## #????? | | ????????????????????# #### #????? | | ???????????????????## #??### ##????? | | ?????????????????### #### ##?????#####?????? | | ?????????????????# ##??## #????????????????? | | ?????????????????# gg####### #???????????????? | | ?????????????????# ;;;;;#### ??????????????? | | ?????????????????## ; #??# ????????????? | | ??????????????????# ; #??? ???????????? | | ??????????????????# ;% ; #??? ??????????? | | ??????????????????# ; ; #???? ?????????? | | ??????????????????## ;;@ ; #???? ?????????? | | ???????????????????#####; u###????? ?????????? | | ???????????????????????## ##?????? ###??????????? | | ????????????????????????# #????????#????????????? | | ????????????????????????# #?????????????????????? | | ????????????????????????# #?????????????????????? | | ????????????????????????# #?????????????????????? | | ???????????????????????? r#?????????????????????? | | ????????????????????????# #?????????????????????? | | ????????????????????????? #?????????????????????? | | ????????????????????????? #?????????????????????? | | ????????????????????????? #?????????????????????? | | ????????????????????????? #?????????????????????? | | ????????????????????????? ??????????????????????? | | ????????????????????????? ??????????????????????? | | ????????????????????????? ??????????????????????? | | ?????????????????????????????????????????????????? | | ?????????????????????????????????????????????????? | | ?????????????????????????????????????????????????? | | ?????????????????????????????????????????????????? | | ?????????????????????????????????????????????????? | | ?????????????????????????????????????????????????? | | ?????????????????????????????????????????????????? | | ?????????????????????????????????????????????????? | | ?????????????????????????????????????????????????? | +----------------------------------------------------+ Best States ------------- Heat Dissipation 38 Energy Generation 14 Energy Capacity 265 Matter Stores 300 Matter Capacity 300 Sight Range 16 Terrain Scan Density 10 Evasion (%) 40 Recoil Reduction 4 Item Schematics ----------------- None Robot Schematics ------------------ None Fabricated ------------ Nothing Alien Tech Used ----------------- None Achievements -------------- None Challenges ------------ None Game ------ Seed TechRainbowBlade Manual? 0 Play Time 00:13:47 Cumulative 161.3 hours Start 2024.08.29 @ 22:52:58 End 2024.08.29 @ 23:06:07 Sessions 1 Manual Loads 0 Difficulty Rogue Special Mode None Game No. 124 Rogue 124 Adventurer 0 Explorer 0 Win Type - Total 1 Types 0/0/0/1/0/0/0/0/0 Lore% 61 Gallery% 68 Achievement% 50 Wizard Run 0 Options --------- Layout 2 ASCII 0 Keyboard 1 Movement Vi Keybinds 0 Fullscreen 1 Font 32/SmallcapsGlow Map View 77x44 Zoom Use 0% Tactical HUD 1 Map Filters NONE Filters NONE Steam 1 RUN: 266086c8-9df2-4920-82c9-aea1ac355899